bitfinex-derivatives/quotes_ETHF0:USTF0_20250104
["timestamp","ask_amount","ask_price","bid_price","bid_amount"]
[1735967429453,1.13255979,3587.9,3587.7,2.35870388]
[1735967429652,0.85371979,3587.9,3587.8,0.27884]
[1735967430448,0.4354,3587.9,3587.8,0.27884]
[1735967432154,0.85369147,3587.9,3587.8,0.27884]
[1735967435655,1.26499147,3587.9,3587.8,0.27884]
[1735967436448,1.54382147,3587.9,3587.8,0.27884]
[1735967436656,1.26499147,3587.9,3587.7,2.07985388]
[1735967436856,1.54383147,3587.9,3587.7,2.35870388]
[1735967437960,3.98060905,3587.8,3587.7,2.07985388]
[1735967438459,3.98060905,3587.8,3587.7,2.35870388]
[1735967439162,0.69713147,3587.8,3587.7,2.35870388]
[1735967440156,0.69713147,3587.8,3587.7,1.071]
[1735967440460,0.27884,3587.8,3587.7,1.071]
[1735967441760,5.34178036,3587.8,3587.7,1.071]
[1735967442160,0.27887,3587.5,3587.4,1.45015388]
[1735967442357,3.48667,3587.5,3587.4,1.45015388]
[1735967443163,3.90496147,3587.5,3587.4,1.45015388]
[1735967443664,4.33016147,3587.5,3587.4,1.45015388]
[1735967444665,4.33016147,3587.5,3587.4,1.00885388]
[1735967459768,0.27887,3587.4,3587.3,0.454]
[1735967459973,0.73057,3587.4,3587.3,0.454]
[1735967461265,5.52497304,3587.4,3587.3,0.454]
[1735967463570,4.79440304,3587.4,3587.3,0.454]
[1735967463772,4.79440304,3587.4,3587.3,0.73288]
[1735967464072,4.79440304,3587.4,3587.3,1.17328]
[1735967465682,6.48930493,3587.5,3587.4,0.27887]
[1735967465877,6.48930493,3587.5,3587.4,1.28772388]
[1735967466084,6.48930493,3587.5,3587.4,1.73122388]
[1735967466976,3.62614078,3587.5,3587.4,1.73122388]
[1735967469484,6.90829449,3587.5,3587.4,1.73122388]
[1735967471082,3.70049449,3587.5,3587.4,1.73122388]
[1735967472090,3.28215371,3587.5,3587.4,1.73122388]
[1735967475586,3.28215371,3587.5,3587.4,6.73122388]
[1735967475790,2.18853576,3587.6,3587.5,0.27887]
[1735967477278,2.18853576,3587.7,3587.5,4.38369409]
[1735967477589,2.18853576,3587.7,3587.6,1.28771388]
[1735967478489,2.18853576,3587.9,3587.6,7.5868625]
[1735967478682,2.18853576,3587.9,3587.8,0.27884]
[1735967479191,2.18853576,3587.9,3587.8,1.28769388]
[1735967479484,0.27885,3587.7,3587.6,6.57800862]
[1735967479686,3.48665,3587.7,3587.6,7.5868625]
[1735967479887,3.48665,3587.7,3587.6,1.00885388]
[1735967481389,3.2078,3587.7,3587.6,1.00885388]
[1735967481591,3.48665,3587.7,3587.6,1.00885388]
[1735967481893,8.28110235,3587.7,3587.6,1.00885388]
[1735967482582,8.00225235,3587.7,3587.6,1.00885388]
[1735967482888,3.90499078,3587.7,3587.6,1.00885388]
[1735967483686,3.62614078,3587.7,3587.6,1.00885388]
[1735967484378,3.90499078,3587.7,3587.6,1.00885388]
[1735967485190,3.62614078,3587.7,3587.6,1.28771388]
[1735967486487,0.41834078,3587.7,3587.6,1.28771388]
[1735967487485,3.28258419,3587.7,3587.6,1.00885388]
[1735967487794,3.28258419,3587.7,3587.6,1.28771388]
[1735967488487,6.49038419,3587.7,3587.6,1.00885388]
[1735967488694,6.12665344,3587.7,3587.6,1.00885388]
[1735967488986,0.27886,3587.6,3587.5,4.38329031]
[1735967489992,0.27887,3587.4,3587.3,1.00885388]
[1735967490187,5.07393204,3587.6,3587.3,1.28772388]
[1735967490588,5.07393204,3587.6,3587.4,0.27887]
[1735967490794,4.79507204,3587.6,3587.5,1.28772388]
[1735967491293,4.37677892,3587.6,3587.5,1.28772388]
[1735967492500,3.70067398,3587.6,3587.5,1.28772388]
[1735967492992,3.70067398,3587.6,3587.5,1.00885388]
[1735967493197,3.97953398,3587.6,3587.5,1.00885388]
[1735967493382,3.97953398,3587.6,3587.4,0.27887]
[1735967493383,0.6971802,3587.6,3587.4,0.27887]
[1735967493988,0.4183202,3587.6,3587.3,1.00885388]
[1735967494193,0.6971802,3587.6,3587.4,0.27887]
[1735967494388,1.42717408,3587.6,3587.2,4.38329031]
[1735967494591,0.27888,3587.3,3587.2,4.38329031]
[1735967494998,0.27888,3587.3,3587.1,1.28775388]
[1735967495191,0.8684,3587.2,3587.1,1.28775388]
[1735967496397,4.56908388,3587.2,3587.1,1.28775388]
[1735967503799,4.56908388,3587.2,3587.1,1.00885388]
[1735967503800,4.84797388,3587.2,3587.1,1.00885388]
[1735967504304,4.56908388,3587.2,3587.1,1.28775388]
[1735967505300,1.2867202,3587.2,3587.1,1.28775388]
[1735967506808,0.8684,3587.2,3587.1,1.28775388]
[1735967507304,4.0762,3587.2,3587.1,1.28775388]
[1735967507803,1.2867202,3587.2,3587.1,1.28775388]
[1735967508002,4.4945202,3587.2,3587.1,1.28775388]
[1735967512009,1.2867202,3587.2,3587.1,1.28775388]
[1735967512403,4.4945202,3587.2,3587.1,1.28775388]
[1735967514004,4.0714202,3587.2,3587.1,1.28775388]
[1735967514506,4.3503102,3587.2,3587.1,1.28775388]
[1735967514904,1.1425102,3587.2,3587.1,1.28775388]
[1735967515209,4.3503102,3587.2,3587.1,1.28775388]
[1735967515801,7.34972151,3587.2,3587.1,1.28775388]
[1735967524615,4.14192151,3587.2,3587.1,1.28775388]
[1735967525114,0.8636202,3587.2,3587.1,1.28775388]
[1735967525318,0.8636202,3587.2,3587.1,1.74225388]
[1735967530522,0.8636202,3587.2,3587.1,2.15725388]
[1735967530720,0.4183202,3587.2,3587.1,2.15725388]
[1735967532828,2.18745147,3587.2,3587.1,6.54054419]
[1735967533928,3.2811772,3587.3,3587.1,6.26164419]
[1735967534128,3.2811772,3587.3,3587.2,0.27889]
[1735967535329,3.2811772,3587.3,3587.2,4.66218031]
[1735967537231,4.37677892,3587.4,3587.3,0.27888]
[1735967537431,4.37677892,3587.4,3587.3,1.28773388]
[1735967538638,4.79511628,3587.4,3587.3,1.28773388]
[1735967539936,4.37677892,3587.4,3587.3,1.28773388]
[1735967541231,4.79511628,3587.5,3587.4,0.27887]
[1735967542344,0.41833736,3587.5,3587.4,4.66216031]
[1735967542540,3.28379296,3587.5,3587.4,4.66216031]
[1735967543736,0.41833736,3587.6,3587.5,0.27887]
[1735967544236,0.41833736,3587.6,3587.5,1.28772388]
[1735967546436,0.41833736,3587.6,3587.5,2.15252388]
[1735967548137,2.18890011,3587.7,3587.6,0.27886]
[1735967548344,2.18890011,3587.7,3587.6,1.35086]
[1735967548943,2.62050011,3587.7,3587.6,1.35086]
[1735967552848,0.4316,3587.7,3587.6,1.35086]
[1735967553638,2.18890011,3587.8,3587.7,0.27885]
[1735967553844,2.18890011,3587.8,3587.7,1.28770388]
[1735967555350,0.414,3587.9,3587.8,0.27884]
[1735967559752,0.414,3587.9,3587.8,1.28769388]
[1735967560055,0.843,3587.9,3587.8,1.28769388]
[1735967562160,0.843,3587.9,3587.8,0.27884]
[1735967562460,0.843,3587.9,3587.8,1.35084]
[1735967563655,4.12635017,3587.9,3587.8,1.35084]
[1735967565062,4.54464268,3587.9,3587.8,1.35084]
[1735967569053,4.54464268,3587.9,3587.8,0.27884]
[1735967569365,4.54464268,3587.9,3587.8,1.35084]
[1735967570264,1.26129251,3587.9,3587.8,1.35084]
[1735967570868,1.26129251,3587.9,3587.8,0.27884]
[1735967575765,0.83229251,3587.9,3587.8,0.27884]
[1735967577565,0.414,3587.9,3587.8,0.27884]
[1735967579768,3.70018714,3587.9,3587.8,0.27884]
[1735967582567,3.28618714,3587.9,3587.8,0.27884]
[1735967583464,2.19139172,3587.9,3587.8,4.66224802]
[1735967584770,2.19139172,3587.9,3587.8,0.27884]
[1735967586971,2.19139172,3587.9,3587.8,6.85684862]
[1735967595379,3.28618714,3588.1,3587.7,2.08085388]
[1735967595380,2.19139172,3588.0,3587.9,0.27883]
[1735967595579,2.19139172,3588.0,3587.9,1.28768388]
[1735967596675,2.19139172,3588.1,3588.0,0.27883]
[1735967596873,2.19139172,3588.1,3588.0,1.14003]
[1735967598368,2.19139172,3588.2,3588.0,7.43739798]
[1735967598571,2.19139172,3588.2,3588.1,1.28767388]
[1735967599679,3.72358714,3588.3,3588.1,5.39286036]
[1735967599875,3.72358714,3588.3,3588.2,0.27881]
[1735967605590,2.6269228,3588.3,3588.2,0.27881]
[1735967606891,0.4374,3588.3,3588.2,0.27881]
[1735967608091,0.4374,3588.3,3588.2,4.66281648]
[1735967608695,0.4374,3588.3,3588.2,4.88436949]
[1735967609386,0.4374,3588.3,3588.2,7.07656099]
[1735967610287,2.1895228,3588.6,3588.2,6.79775099]
[1735967610488,2.1895228,3588.6,3588.5,1.28764388]
[1735967610793,2.1895228,3588.6,3588.5,2.35864388]
[1735967612193,2.6199228,3588.8,3588.7,0.27877]
[1735967612394,2.6199228,3588.8,3588.7,1.28762388]
[1735967613691,0.4304,3588.8,3588.7,1.28762388]
[1735967618600,2.6199228,3588.8,3588.7,1.28762388]
[1735967620993,0.4304,3588.8,3588.7,1.28762388]
[1735967623200,2.1895228,3588.9,3588.7,4.21665388]
[1735967623392,2.1895228,3588.9,3588.8,0.27877]
[1735967623695,2.1895228,3588.9,3588.8,0.70607]
[1735967624596,2.1895228,3588.9,3588.8,1.55717]
[1735967625002,2.6327228,3589.2,3589.1,0.27874]
[1735967626397,0.4432,3589.2,3589.1,0.27874]
[1735967634910,0.4432,3589.2,3589.1,1.34874]
[1735967640912,2.6327228,3589.2,3589.1,1.34874]
[1735967645216,0.4432,3589.2,3589.1,1.34874]
[1735967647711,3.72938714,3589.2,3589.1,1.34874]
[1735967650613,4.14750508,3589.2,3589.1,1.34874]
[1735967651614,0.86131794,3589.2,3589.1,1.34874]
[1735967652720,0.4432,3589.2,3589.1,1.34874]
[1735967654021,5.23809686,3589.2,3589.1,1.34874]
[1735967662733,0.86131794,3589.2,3589.1,1.34874]
[1735967664441,5.23809686,3589.2,3589.1,5.728623]
[1735967669542,0.86131794,3589.2,3589.1,1.34874]
[1735967673550,0.86131794,3589.2,3589.1,5.7364186]
[1735967674751,5.50886973,3589.2,3589.1,5.7364186]
[1735967675946,10.97900919,3589.2,3589.1,1.34874]
[1735967682056,11.25773919,3589.2,3589.1,1.07]
[1735967682452,10.97900919,3589.2,3589.1,1.34874]
[1735967691157,10.53580919,3589.2,3589.1,1.78894]
[1735967691868,0.41811794,3589.2,3589.1,1.78894]
[1735967693165,4.80505374,3589.2,3589.1,1.78894]
[1735967693665,4.80505374,3589.2,3589.1,4.99674]
[1735967694363,4.3869358,3589.3,3589.1,11.29419798]
[1735967694563,4.3869358,3589.3,3589.2,1.71198388]
[1735967696058,4.80505374,3589.3,3589.2,6.09578649]
[1735967697865,4.80505374,3589.4,3589.3,0.27873]
[1735967705576,0.41811794,3589.4,3589.3,0.27873]
[1735967707167,0.41811794,3589.4,3589.3,1.34873]
[1735967709174,3.28795145,3589.5,3589.3,1.07]
[1735967709374,3.28795145,3589.5,3589.4,1.69807388]
[1735967710481,3.28795145,3589.5,3589.4,6.07846683]
[1735967713183,3.28795145,3589.6,3589.5,0.27871]
[1735967713384,3.28795145,3589.6,3589.5,1.28756388]
[1735967714978,3.28795145,3589.7,3589.6,0.2787]
[1735967715285,3.28795145,3589.7,3589.6,1.71735388]
[1735967717788,3.70606939,3589.7,3589.6,1.71735388]
[1735967719293,3.28795145,3589.7,3589.6,1.71735388]
[1735967724593,0.424,3589.8,3589.7,0.2787]
[1735967724594,3.71195145,3589.8,3589.7,0.2787]
[1735967725792,4.13001234,3589.8,3589.7,0.2787]
[1735967729497,3.71195145,3589.8,3589.7,0.2787]
[1735967732400,4.12999685,3589.8,3589.7,0.2787]
[1735967735101,0.8420454,3589.8,3589.7,0.2787]
[1735967736606,0.424,3589.8,3589.7,0.2787]
[1735967737599,5.22598066,3589.8,3589.7,0.2787]
[1735967743107,0.8420454,3589.8,3589.7,0.2787]
[1735967746311,5.48514422,3589.8,3589.7,1.3487]
[1735967749015,5.22683811,3589.8,3589.7,1.3487]
[1735967750513,0.8420454,3589.8,3589.7,1.3487]
[1735967752816,5.4863601,3589.8,3589.7,1.3487]
[1735967754320,10.95649956,3589.8,3589.7,1.3487]
[1735967762230,5.4863601,3589.8,3589.7,1.3487]
[1735967763426,0.8420454,3589.8,3589.7,1.3487]
[1735967764927,10.97153941,3589.8,3589.7,1.3487]
[1735967766331,5.4863601,3589.8,3589.7,1.3487]
[1735967767725,0.8420454,3589.8,3589.7,1.3487]
[1735967768933,10.97127733,3589.8,3589.7,1.3487]
[1735967779442,10.97127733,3589.8,3589.7,5.72909295]
[1735967779636,5.4863601,3589.8,3589.7,5.72909295]
[1735967783350,0.8420454,3589.8,3589.7,5.72909295]
[1735967791749,0.4180454,3589.8,3589.7,5.72909295]
[1735967792451,4.80553566,3589.8,3589.7,5.72909295]
[1735967794160,3.28993397,3589.8,3589.7,1.3487]
[1735967795360,3.28993397,3589.9,3589.8,0.27869]
[1735967795658,3.28993397,3589.9,3589.8,1.69804388]
[1735967795952,3.28993397,3589.9,3589.8,2.13264388]
[1735967796552,2.19223623,3589.9,3589.8,2.13264388]
[1735967798059,2.19223623,3589.9,3589.8,8.69347313]
[1735967798857,2.19223623,3590.0,3589.8,11.90127313]
[1735967799167,2.19223623,3590.0,3589.9,1.28753388]
[1735967800263,2.19223623,3590.1,3590.0,0.27867]
[1735967800457,2.19223623,3590.1,3590.0,1.73242388]
[1735967801459,2.19223623,3590.1,3590.0,6.10381017]
[1735967803861,2.19223623,3590.1,3590.0,1.73242388]
[1735967805264,2.62743623,3590.2,3590.1,0.27866]
[1735967805862,2.62743623,3590.2,3590.1,0.73226]
[1735967812463,2.19223623,3590.2,3590.1,0.73226]
[1735967813168,2.19223623,3590.3,3590.2,0.27866]
[1735967813467,2.19223623,3590.3,3590.2,4.91481388]
[1735967816865,2.19223623,3590.3,3590.2,1.70701388]
[1735967817066,2.19223623,3590.4,3590.2,1.42835388]
[1735967817267,2.19223623,3590.4,3590.3,0.27865]
[1735967818674,3.70791873,3590.4,3590.3,0.27865]
[1735967818869,4.14701873,3590.4,3590.3,0.27865]
[1735967819766,3.72903397,3590.4,3590.3,0.27865]
[1735967821375,0.4391,3590.4,3590.3,0.27865]
[1735967824887,3.72903397,3590.4,3590.3,0.27865]
[1735967825095,3.28993397,3590.4,3590.3,0.27865]
[1735967826484,3.28993397,3590.5,3590.4,0.27864]
[1735967826787,3.28993397,3590.5,3590.4,1.34864]
[1735967827596,3.70790712,3590.5,3590.4,1.34864]
[1735967828397,3.70790712,3590.5,3590.4,2.35749388]
[1735967828601,0.41797315,3590.5,3590.4,2.35749388]
[1735967830285,4.38749026,3590.6,3590.4,2.07885388]
[1735967830487,4.38749026,3590.6,3590.5,1.28748388]
[1735967831493,4.80546341,3590.6,3590.5,1.28748388]
[1735967835304,0.41797315,3590.6,3590.5,1.28748388]
[1735967837299,5.06030448,3590.6,3590.5,1.28748388]
[1735967838800,5.33893448,3590.6,3590.5,1.28748388]
[1735967839005,5.06030448,3590.6,3590.5,1.28748388]
[1735967840008,10.54522171,3590.6,3590.5,1.28748388]
[1735967840398,10.82385171,3590.6,3590.5,1.28748388]
[1735967840902,10.54522171,3590.6,3590.5,1.28748388]
[1735967844506,10.82385171,3590.6,3590.5,1.28748388]
[1735967847900,10.54522171,3590.6,3590.5,1.28748388]
[1735967848408,10.82385171,3590.6,3590.5,1.00885388]
[1735967849706,10.82385171,3590.6,3590.5,1.28748388]
[1735967850504,5.33893448,3590.6,3590.5,1.28748388]
[1735967851706,0.69660315,3590.6,3590.5,1.28748388]
[1735967853113,5.33893448,3590.6,3590.5,1.28748388]
[1735967854508,5.06030448,3590.6,3590.5,1.28748388]
[1735967854915,5.33893448,3590.6,3590.5,1.00885388]
[1735967859719,5.06030448,3590.6,3590.5,1.28748388]
[1735967859914,5.75843448,3590.6,3590.5,1.00885388]
[1735967860321,11.24320395,3590.6,3590.5,1.00885388]
[1735967861719,5.75843448,3590.6,3590.5,1.00885388]
[1735967862715,1.11610315,3590.6,3590.5,1.00885388]
[1735967864021,5.75843448,3590.6,3590.5,1.00885388]
[1735967864822,8.96623448,3590.6,3590.5,1.00885388]
[1735967865016,5.75843448,3590.6,3590.5,1.00885388]
[1735967865322,8.96623448,3590.6,3590.5,1.00885388]
[1735967866025,8.68760448,3590.6,3590.5,1.28748388]
[1735967866224,8.96623448,3590.6,3590.5,1.00885388]
[1735967866420,8.68760448,3590.6,3590.5,1.28748388]
[1735967866827,8.68760448,3590.6,3590.5,1.00885388]
[1735967867022,8.96623448,3590.6,3590.5,1.00885388]
[1735967867721,14.45097849,3590.6,3590.5,1.00885388]
[1735967868425,11.24317849,3590.6,3590.5,1.00885388]
[1735967868727,5.75843448,3590.6,3590.5,1.00885388]
[1735967869134,5.75843448,3590.6,3590.5,1.28748388]
[1735967869323,5.75843448,3590.6,3590.5,1.00885388]
[1735967869622,5.47980448,3590.6,3590.5,1.28748388]
[1735967869821,1.11610315,3590.6,3590.5,1.28748388]
[1735967871024,5.75843448,3590.6,3590.5,1.28748388]
[1735967871327,5.75843448,3590.6,3590.5,1.00885388]
[1735967872822,5.75843448,3590.6,3590.5,2.07785388]
[1735967873630,5.75843448,3590.6,3590.5,2.35648388]
[1735967874231,5.75843448,3590.6,3590.5,2.07785388]
[1735967879133,5.06030448,3590.6,3590.5,2.35648388]
[1735967879433,5.33893448,3590.6,3590.5,2.07785388]
[1735967879825,5.06030448,3590.6,3590.5,2.07785388]
[1735967880025,5.06030448,3590.6,3590.5,2.35648388]
[1735967880231,10.54503051,3590.6,3590.5,2.35648388]
[1735967881527,10.54503051,3590.6,3590.5,3.36533776]
[1735967881726,0.41797315,3590.6,3590.5,9.92616701]
[1735967882839,3.28889,3590.6,3590.5,3.36533776]
[1735967883435,3.28889,3590.6,3590.5,2.35648388]
[1735967885437,3.70686315,3590.7,3590.6,0.27863]
[1735967885735,3.70686315,3590.7,3590.6,1.28748388]
[1735967886133,3.98548315,3590.7,3590.6,2.07785388]
[1735967886336,4.40718315,3590.7,3590.6,2.07785388]
[1735967886838,1.11829315,3590.7,3590.6,2.07785388]
[1735967887232,0.83967315,3590.7,3590.6,2.35648388]
[1735967887433,0.83967315,3590.7,3590.6,1.28748388]
[1735967887631,0.83967315,3590.7,3590.6,2.35648388]
[1735967888132,5.2271488,3590.7,3590.6,2.35648388]
[1735967889432,5.2271488,3590.7,3590.6,2.07785388]
[1735967889632,5.2271488,3590.7,3590.6,2.35648388]
[1735967894537,0.83967315,3590.7,3590.6,2.35648388]
[1735967897946,4.12649421,3590.7,3590.6,2.35648388]
[1735967900447,0.83967315,3590.7,3590.6,2.35648388]
[1735967901747,0.4217,3590.7,3590.6,2.35648388]
[1735967903245,0.83967315,3590.7,3590.6,2.35648388]
[1735967904853,4.12628058,3590.7,3590.6,2.35648388]
[1735967905880,0.83967315,3590.7,3590.6,2.35648388]
[1735967906951,0.4217,3590.7,3590.6,2.35648388]
[1735967908148,0.4243,3590.8,3590.6,2.07785388]
[1735967908348,0.4243,3590.8,3590.7,1.34762]
[1735967908553,4.81177565,3590.8,3590.7,1.34762]
[1735967909750,0.84223656,3590.8,3590.7,1.34762]
[1735967916457,0.84223656,3590.8,3590.7,2.20642]
[1735967917052,0.41793656,3590.8,3590.7,2.20642]
[1735967919765,3.28723477,3590.8,3590.7,6.5799011]
[1735967925161,3.28723477,3590.8,3590.7,2.20642]
[1735967927668,0.41791356,3590.8,3590.7,2.20642]
[1735967928964,0.41791356,3590.8,3590.7,6.57986113]
[1735967930372,3.70604346,3590.8,3590.7,2.20642]
[1735967931665,3.2881299,3590.8,3590.7,2.20642]
[1735967932771,3.70604346,3590.9,3590.8,0.27861]
[1735967932969,3.70604346,3590.9,3590.8,1.70756388]
[1735967934166,0.41791356,3590.9,3590.8,6.07877272]
[1735967935273,0.4266,3591.0,3590.8,5.80016272]
[1735967935575,0.4266,3591.0,3590.9,0.2786]
[1735967936570,0.84451356,3591.0,3590.9,0.2786]
[1735967940276,5.23198921,3591.0,3590.9,0.2786]
[1735967941871,0.84451356,3591.0,3590.9,4.64980884]
[1735967944073,0.84451356,3591.0,3590.9,0.2786]
[1735967945477,0.84451356,3591.0,3590.9,4.64980884]
[1735967949376,4.1323519,3591.0,3590.9,0.2786]
[1735967950782,4.1323519,3591.0,3590.9,6.83666282]
[1735967950783,3.71443834,3591.0,3590.9,6.83666282]
[1735967951682,3.71443834,3591.0,3590.9,0.2786]
[1735967952680,3.28783834,3591.0,3590.9,0.2786]
[1735967952885,3.28783834,3591.0,3590.9,6.83666282]
[1735967954482,2.19151035,3591.0,3590.9,7.8455167]
[1735967964392,1.50891035,3591.0,3590.9,7.8455167]
[1735967964790,1.50891035,3591.0,3590.9,6.83666282]
[1735967965106,1.50891035,3591.0,3590.9,2.35645388]
[1735967966296,3.70574166,3591.0,3590.9,6.72662925]
[1735967967600,3.28783834,3591.0,3590.9,6.72662925]
[1735967968990,3.70574166,3591.0,3590.9,6.72662925]
[1735967971797,3.70574166,3591.0,3590.9,9.93442925]
[1735967971990,3.70574166,3591.0,3590.9,10.77252925]
[1735967973101,3.28783834,3591.1,3590.9,16.46088338]
[1735967973301,3.28783834,3591.1,3591.0,1.28744388]
[1735967974603,3.28783834,3591.1,3591.0,11.62457338]
[1735967975999,3.70571388,3591.2,3591.1,0.27859]
[1735967977502,3.28783834,3591.2,3591.1,4.06045645]
[1735967980496,3.70571684,3591.2,3591.1,4.06045645]
[1735967981003,4.11611684,3591.2,3591.1,4.06045645]
[1735967983604,3.69823834,3591.2,3591.1,10.6157195]
[1735967985212,3.69823834,3591.2,3591.1,4.06045645]
[1735967986009,4.11611128,3591.2,3591.1,4.06045645]
[1735967988598,4.11611128,3591.2,3591.1,10.6157195]
[1735967990205,0.82827294,3591.2,3591.1,4.06045645]
[1735967991506,0.4104,3591.2,3591.1,4.06045645]
[1735967993213,4.11646371,3591.2,3591.1,10.6157195]
[1735967994402,0.82827294,3591.2,3591.1,10.6157195]
[1735967995915,0.4104,3591.2,3591.1,10.6157195]
[1735967997410,0.82827294,3591.2,3591.1,10.6157195]
[1735968001911,0.82827294,3591.2,3591.1,11.62457338]
[1735968003613,5.21574859,3591.2,3591.1,5.66449628]
[1735968007719,4.80534859,3591.2,3591.1,5.66449628]
[1735968009517,3.28841106,3591.2,3591.1,11.63020747]
[1735968012215,4.80534859,3591.3,3591.2,0.27858]
[1735968013614,4.80534859,3591.3,3591.2,4.65598079]
[1735968013811,4.80534859,3591.3,3591.2,4.37740079]
[1735968014015,5.08391859,3591.3,3591.2,4.37740079]
[1735968014817,5.25456434,3591.3,3591.0,5.38625467]
[1735968015524,0.27858,3591.2,3591.0,5.38625467]
[1735968016120,5.89892313,3591.2,3591.0,1.00885388]
[1735968016321,5.89892313,3591.2,3591.1,0.27859]
[1735968017225,0.41787294,3591.2,3591.1,0.27859]
[1735968018126,4.97599434,3591.2,3591.1,0.27859]
[1735968020529,4.80186975,3591.2,3591.1,0.27859]
[1735968022228,4.80186975,3591.2,3591.1,0.68829]
[1735968023130,5.89625019,3591.4,3591.2,0.27858]
[1735968023131,4.80186975,3591.3,3591.2,0.27858]
[1735968023328,4.80186975,3591.3,3591.2,2.16073388]
[1735968024231,0.41787294,3591.3,3591.2,6.53813467]
[1735968026934,4.80186975,3591.4,3591.2,6.25955467]
[1735968027232,4.80186975,3591.4,3591.3,0.27857]
[1735968030426,4.80186975,3591.4,3591.3,1.34757]
[1735968033346,0.41787294,3591.4,3591.3,5.72497079]
[1735968034150,0.83617294,3591.4,3591.3,5.72497079]
[1735968040954,0.41787294,3591.4,3591.3,5.72497079]
[1735968042049,6.49432545,3591.6,3591.5,0.27856]
[1735968042654,6.49432545,3591.6,3591.5,0.68996]
[1735968043150,3.2078,3591.6,3591.5,4.47297878]
[1735968045055,3.2078,3591.6,3591.5,11.02824183]
[1735968045249,3.28652545,3591.8,3591.5,10.74968183]
[1735968045454,3.28652545,3591.8,3591.7,1.28739388]
[1735968046557,3.70562545,3591.9,3591.8,0.27853]
[1735968047961,0.4191,3591.9,3591.8,0.27853]
[1735968051655,3.28652545,3592.0,3591.8,1.00885388]
[1735968051855,3.28652545,3592.0,3591.9,1.28737388]
[1735968052064,3.28652545,3592.0,3591.9,1.72227388]
[1735968052260,3.28652545,3592.1,3592.0,0.27852]
[1735968052457,3.28652545,3592.1,3592.0,2.35637388]
[1735968053865,6.49432545,3592.2,3592.1,0.27851]
[1735968055954,3.28652545,3592.2,3592.1,0.27851]
[1735968056567,3.72092545,3592.3,3592.2,0.2785]
[1735968056763,3.72092545,3592.3,3592.2,1.28735388]
[1735968058063,4.13870554,3592.3,3592.2,1.28735388]
[1735968059462,3.72092545,3592.3,3592.2,1.28735388]
[1735968063777,0.4344,3592.3,3592.2,1.28735388]
[1735968067861,5.04839506,3592.6,3592.2,1.28735388]
[1735968067862,3.28652545,3592.6,3592.5,0.27848]
[1735968068068,3.28652545,3592.6,3592.5,1.28733388]
[1735968068873,3.70242545,3592.6,3592.5,1.28733388]
[1735968069572,0.4159,3592.6,3592.5,1.28733388]
[1735968070671,0.4356,3593.0,3592.5,1.00885388]
[1735968070870,0.4356,3593.0,3592.3,0.4325]
[1735968070871,0.4355,3592.9,3592.8,0.27845]
[1735968071072,0.4355,3592.9,3592.8,1.34645]
[1735968071462,0.4355,3592.9,3592.8,2.35530388]
[1735968073369,0.4413,3593.2,3592.8,3.08570776]
[1735968073677,0.4413,3593.2,3593.1,2.29613776]
[1735968073869,0.4413,3593.2,3593.1,1.28728388]
[1735968081577,0.4413,3593.2,3593.1,1.068]
[1735968081779,0.71973,3593.2,3593.1,2.07685388]
[1735968082380,3.92753,3593.2,3593.1,2.07685388]
[1735968083379,3.2078,3593.2,3593.1,2.35528388]
[1735968084987,0.8728,3593.4,3593.3,0.27842]
[1735968085285,0.8728,3593.4,3593.3,1.28727388]
[1735968092988,1.15121,3593.4,3593.3,1.00885388]
[1735968093189,0.8728,3593.4,3593.3,1.00885388]
[1735968093692,1.15121,3593.4,3593.3,1.28727388]
[1735968093886,1.15121,3593.4,3593.3,1.00885388]
[1735968094399,6.54129884,3593.4,3593.3,1.00885388]
[1735968096405,6.26288884,3593.4,3593.3,1.28727388]
[1735968096701,3.05508884,3593.4,3593.3,1.28727388]
[1735968097197,6.26288884,3593.4,3593.3,1.28727388]
[1735968097499,3.05508884,3593.4,3593.3,1.28727388]
[1735968099103,0.8728,3593.4,3593.3,1.28727388]
[1735968099700,0.4421,3593.4,3593.3,1.28727388]
[1735968100197,0.4421,3593.4,3593.3,1.73737388]
[1735968100500,2.62438884,3593.4,3593.3,1.73737388]
[1735968101699,2.62438884,3593.4,3593.3,0.72852]
[1735968102002,2.62438884,3593.4,3593.3,0.27842]
[1735968102203,3.06928884,3593.4,3593.3,0.27842]
[1735968103301,3.06928884,3593.4,3593.3,1.34642]
[1735968104006,0.887,3593.4,3593.3,1.34642]
[1735968104905,4.17352545,3593.4,3593.3,1.34642]
[1735968105207,3.28652545,3593.4,3593.3,1.34642]
[1735968105800,2.18625704,3593.4,3593.3,1.34642]
[1735968107207,3.70416905,3593.5,3593.4,0.27841]
[1735968107406,3.70416905,3593.5,3593.4,1.28726388]
[1735968108414,0.4176436,3593.5,3593.4,1.28726388]
[1735968109602,5.11069681,3593.6,3593.4,1.28726388]
[1735968110405,5.11069681,3593.6,3593.4,1.00885388]
[1735968110609,5.11069681,3593.6,3593.5,0.2784]
[1735968110906,0.7267,3593.6,3593.5,0.2784]
[1735968111108,0.7267,3593.6,3593.4,1.28725388]
[1735968112304,0.2784,3593.5,3593.4,1.00885388]
[1735968112508,0.2784,3593.5,3593.4,1.28725388]
[1735968112803,0.4483,3593.6,3593.4,1.28725388]
[1735968113000,0.4483,3593.6,3593.4,1.00885388]
[1735968113206,0.2784,3593.5,3593.4,1.00885388]
[1735968113711,0.2784,3593.5,3593.4,1.28726388]
[1735968113907,5.24809746,3593.5,3593.4,1.28726388]
[1735968114909,10.45074765,3593.5,3593.0,4.36858726]
[1735968115214,10.45074765,3593.5,3593.3,1.00885388]
[1735968115215,0.27841,3593.4,3593.3,1.00885388]
[1735968115912,3.2078,3593.4,3593.2,1.068]
[1735968116104,3.2078,3593.4,3593.1,1.00885388]
[1735968116311,0.27842,3593.2,3593.1,5.37744114]
[1735968117813,1.76126424,3594.0,3593.1,1.00885388]
[1735968118003,9.94889913,3594.5,3593.1,1.00885388]
[1735968118004,3.2078,3595.5,3593.9,4.21665388]
[1735968118209,0.4231,3594.9,3594.4,3.2078]
[1735968118512,0.4231,3594.9,3594.5,1.34632]
[1735968118712,0.8546,3594.8,3594.6,0.27831]
[1735968119112,0.8546,3594.8,3594.7,1.00885388]
[1735968119619,0.8546,3594.8,3594.7,1.28716388]
[1735968120216,0.8546,3594.8,3594.7,16.01732639]
[1735968121213,0.8546,3594.8,3594.7,7.31732234]
[1735968121413,0.4231,3594.9,3594.7,7.31732234]
[1735968122210,0.4231,3594.9,3594.7,6.30846846]
[1735968122618,0.4231,3594.9,3594.7,6.03015846]
[1735968122818,0.4231,3594.9,3594.7,6.30846846]
[1735968123119,0.4231,3594.9,3594.8,6.03015846]
[1735968123709,5.4231,3594.9,3594.8,6.03015846]